bitfinex-derivatives/quotes_SOLF0:USTF0_20241025
["timestamp","ask_amount","ask_price","bid_price","bid_amount"]
[1729870808232,337.0,174.61,174.38,23.27823116]
[1729870808233,21.98733116,174.53,174.38,23.27823116]
[1729870808435,21.98733116,174.53,174.39,1.05377994]
[1729870808834,21.98733116,174.53,174.38,23.27823116]
[1729870808835,21.98733116,174.53,174.4,1.0537175]
[1729870809034,2.8665,174.49,174.38,23.27823116]
[1729870809222,2.8665,174.49,174.39,1.05374233]
[1729870809427,2.8659,174.53,174.48,2.8665]
[1729870809730,21.98733116,174.52,174.38,23.27823116]
[1729870809928,21.98733116,174.52,174.39,1.0537254]
[1729870810128,2.8663,174.5,174.46,2.8669]
[1729870810532,2.8663,174.5,174.38,23.27823116]
[1729870810731,2.8663,174.5,174.45,2.8671]
[1729870810937,21.98733116,174.52,174.38,23.27823116]
[1729870811133,21.98733116,174.5,174.43,2.8674]
[1729870811532,21.98733116,174.5,174.38,23.27823116]
[1729870811836,21.98733116,174.52,174.45,2.867]
[1729870812037,2.8664,174.5,174.45,2.867]
[1729870812436,2.8664,174.5,174.38,23.27823116]
[1729870812437,21.98733116,174.52,174.47,2.8666]
[1729870812640,2.8659,174.53,174.41,21.98733116]
[1729870813136,2.866,174.52,174.47,2.8666]
[1729870813731,2.8664,174.5,174.45,2.867]
[1729870814231,2.8664,174.5,174.38,23.27823116]
[1729870814431,2.8664,174.5,174.46,2.8669]
[1729870815834,21.98733116,174.5,174.38,1.2909]
[1729870816036,21.98733116,174.47,174.37,1.2743]
[1729870816241,21.98733116,174.44,174.36,1.2012]
[1729870817238,2.8675,174.43,174.38,2.8682]
[1729870817541,1.1768,174.46,174.36,1.2012]
[1729870818037,337.0,174.54,174.38,21.98733116]
[1729870818244,5.7285,174.63,174.38,21.98733116]
[1729870818245,21.98733116,174.53,174.38,21.98733116]
[1729870818444,21.98733116,174.53,174.39,1.05385161]
[1729870818643,23.16413116,174.56,174.4,21.98733116]
[1729870818844,23.16413116,174.56,174.41,1.05377822]
[1729870819037,23.16413116,174.56,174.5,2.8663]
[1729870819433,2.8658,174.54,174.5,2.8663]
[1729870819637,23.16413116,174.56,174.5,2.8663]
[1729870819942,23.16413116,174.56,174.43,21.98733116]
[1729870819943,23.16413116,174.56,174.48,2.8665]
[1729870820144,2.866,174.52,174.48,2.8665]
[1729870820346,23.16413116,174.56,174.43,21.98733116]
[1729870820539,2.8659,174.53,174.49,2.8663]
[1729870820844,2.8659,174.53,174.43,21.98733116]
[1729870821041,2.8656,174.54,174.5,2.8662]
[1729870821233,1.1768,174.56,174.44,1.2394]
[1729870821638,2.8656,174.55,174.51,2.866]
[1729870822144,2.8656,174.55,174.52,2.8659]
[1729870822744,2.8654,174.56,174.44,1.2394]
[1729870822946,2.8654,174.56,174.45,1.05349403]
[1729870823144,2.8654,174.56,174.52,2.8658]
[1729870824448,22.98733116,174.58,174.44,1.2394]
[1729870824449,21.98733116,174.53,174.44,1.2394]
[1729870824643,21.98733116,174.5,174.4,2.4264]
[1729870824849,2.8666,174.48,174.45,2.8671]
[1729870825049,2.8666,174.48,174.4,1.2445]
[1729870825050,21.98733116,174.48,174.4,1.2445]
[1729870825242,21.98733116,174.48,174.39,1.287]
[1729870825442,2.8672,174.45,174.41,2.8676]
[1729870826149,2.8673,174.44,174.41,2.8676]
[1729870826351,21.98733116,174.48,174.41,2.8676]
[1729870826852,2.8672,174.45,174.41,2.8677]
[1729870827148,21.98733116,174.45,174.35,2.477]
[1729870827349,21.98733116,174.45,174.36,1.05397835]
[1729870827552,21.98733116,174.45,174.39,2.868]
[1729870827750,21.98733116,174.43,174.29,1.2105]
[1729870828047,21.98733116,174.43,174.3,1.05417671]
[1729870828048,2.8682,174.39,174.3,1.05417671]
[1729870828653,2.8682,174.39,174.34,2.8688]
[1729870828841,2.8682,174.39,174.29,3.583]
[1729870829041,2.8682,174.39,174.3,1.05423774]
[1729870829346,2.8682,174.39,174.34,2.8688]
[1729870829550,21.98733116,174.43,174.34,2.8688]
[1729870830145,1.1775,174.42,174.34,2.8688]
[1729870830351,21.98733116,174.43,174.29,3.583]
[1729870830651,21.98733116,174.46,174.32,21.98733116]
[1729870830847,21.98733116,174.48,174.34,21.98733116]
[1729870831048,2.8671,174.45,174.41,2.8677]
[1729870831242,2.8671,174.45,174.34,21.98733116]
[1729870831556,2.8673,174.44,174.34,21.98733116]
[1729870832140,2.8674,174.43,174.39,2.8681]
[1729870832340,21.98733116,174.46,174.32,21.98733116]
[1729870832556,21.98733116,174.46,174.33,1.05408799]
[1729870832850,2.8675,174.43,174.34,1.05408018]
[1729870833150,21.98733116,174.46,174.35,1.05408018]
[1729870833355,21.98733116,174.48,174.35,21.98733116]
[1729870834247,21.98733116,174.43,174.3,5.7392]
[1729870834454,21.98733116,174.43,174.31,1.05410941]
[1729870834852,2.8677,174.42,174.31,1.05410941]
[1729870835446,2.8677,174.42,174.34,2.8689]
[1729870835652,2.8677,174.42,174.3,5.7392]
[1729870835857,24.85483116,174.43,174.31,1.05412141]
[1729870836059,21.98733116,174.43,174.38,2.8682]
[1729870836350,2.8684,174.38,174.24,21.98733116]
[1729870836545,21.98733116,174.4,174.33,2.869]
[1729870836749,21.98733116,174.38,174.25,1.2021]
[1729870837051,2.8685,174.37,174.26,1.05434766]
[1729870837246,21.98733116,174.38,174.26,1.05434766]
[1729870837450,21.98733116,174.38,174.27,1.05435663]
[1729870837651,21.98733116,174.38,174.26,1.05435663]
[1729870837851,2.8687,174.36,174.32,2.8691]
[1729870838757,2.8685,174.37,174.33,2.8691]
[1729870838952,21.98733116,174.38,174.25,1.2021]
[1729870839147,21.98733116,174.38,174.26,1.05435756]
[1729870839749,24.85573116,174.38,174.29,2.8696]
[1729870839952,24.85573116,174.38,174.25,1.2021]
[1729870840153,21.98733116,174.38,174.26,1.05441001]
[1729870840352,2.8686,174.36,174.26,1.05441001]
[1729870840755,2.8686,174.36,174.25,1.2021]
[1729870840955,2.8686,174.36,174.26,1.05441588]
[1729870841262,2.8688,174.35,174.26,1.05441588]
[1729870841755,2.8694,174.31,174.26,1.05441588]
[1729870842052,21.98733116,174.32,174.22,1.1942]
[1729870842257,2.8698,174.29,174.22,1.1942]
[1729870842645,1.1778,174.34,174.27,2.87]
[1729870843050,2.869,174.34,174.22,1.1942]
[1729870843253,21.98733116,174.35,174.23,2.34942744]
[1729870843457,21.98733116,174.35,174.23,1.2947]
[1729870843657,21.98733116,174.26,174.02,17.17]
[1729870843857,21.98733116,174.37,174.18,21.98733116]
[1729870843858,21.98733116,174.32,174.18,21.98733116]
[1729870844155,2.8697,174.3,174.19,1.2704]
[1729870844354,21.98733116,174.32,174.19,1.2704]
[1729870844755,21.98733116,174.32,174.23,2.8706]
[1729870844756,2.8698,174.29,174.23,2.8706]
[1729870845059,21.98733116,174.32,174.19,1.2704]
[1729870845248,2.8698,174.29,174.19,1.2704]
[1729870846562,2.8698,174.29,174.23,2.8706]
[1729870846870,2.8697,174.3,174.19,1.2704]
[1729870847049,2.8697,174.3,174.24,2.8705]
[1729870847852,21.98733116,174.32,174.19,1.2704]
[1729870848554,21.98733116,174.22,173.86,20.92673265]
[1729870848768,21.98733116,174.19,174.02,21.98733116]
[1729870848964,21.98733116,174.19,174.06,21.98733116]
[1729870849154,21.98733116,174.22,174.11,2.8726]
[1729870849862,2.8717,174.17,174.11,2.8726]
[1729870850863,2.8713,174.2,174.14,2.8722]
[1729870851161,21.98733116,174.27,174.12,21.98733116]
[1729870853166,21.98733116,174.21,174.07,3.6478]
[1729870853467,21.98733116,174.21,174.07,25.63513116]
[1729870853661,21.98733116,174.21,174.14,2.8722]
[1729870853662,2.8713,174.2,174.14,2.8722]
[1729870853960,21.98733116,174.21,174.07,25.63513116]
[1729870854264,2.8712,174.2,174.08,1.05554142]
[1729870855165,2.8712,174.2,174.14,2.8721]
[1729870855371,2.8712,174.2,174.07,25.63513116]
[1729870855559,2.8712,174.2,174.08,1.05552266]
[1729870855759,21.98733116,174.21,174.08,1.05552266]
[1729870855961,21.98733116,174.18,174.07,3.6478]
[1729870856161,21.98733116,174.18,174.08,1.05564267]
[1729870856356,2.8718,174.17,174.11,2.8727]
[1729870856562,21.98733116,174.18,174.07,3.6478]
[1729870857055,2.872,174.16,174.11,2.8726]
[1729870857273,2.872,174.16,174.07,3.6478]
[1729870857566,21.98733116,174.18,174.07,3.6478]
[1729870858164,2.8721,174.15,174.1,2.8727]
[1729870858674,337.0,174.29,174.09,21.98733116]
[1729870858967,21.98733116,174.23,174.09,21.98733116]
[1729870859172,2.8714,174.19,174.14,2.8721]
[1729870859362,21.98733116,174.23,174.09,21.98733116]
[1729870859764,21.98733116,174.23,174.1,1.05556192]
[1729870859971,2.8714,174.2,174.13,2.8722]
[1729870860170,1.0,174.28,174.12,21.98733116]
[1729870860370,21.98733116,174.27,174.12,21.98733116]
[1729870860569,1.0,174.28,174.12,21.98733116]
[1729870860570,21.98733116,174.25,174.12,21.98733116]
[1729870860962,21.98733116,174.22,174.07,3.6478]
[1729870861170,21.98733116,174.22,174.08,1.05546481]
[1729870861360,21.98733116,174.22,174.07,3.6478]
[1729870861361,21.98733116,174.22,174.09,1.05554295]
[1729870861667,21.98733116,174.23,174.1,1.05555868]
[1729870862264,21.98733116,174.23,174.07,25.63513116]
[1729870862469,21.98733116,174.23,174.08,1.05556902]
[1729870862672,22.98733116,174.28,174.08,1.05556902]
[1729870862673,21.98733116,174.2,174.08,1.05556902]
[1729870863377,2.8718,174.17,174.12,2.8724]
[1729870863680,21.98733116,174.2,174.07,25.63513116]
[1729870863972,2.872,174.16,174.11,2.8726]
[1729870864166,21.98733116,174.17,173.87,2.34829884]
[1729870864368,21.98733116,174.17,174.02,1.2647]
[1729870864569,21.98733116,174.17,174.08,2.8731]
[1729870864570,2.8724,174.13,174.08,2.8731]
[1729870864965,21.98733116,174.17,174.02,2.5218]
[1729870865164,2.8727,174.12,174.03,1.05579898]
[1729870865370,21.98733116,174.17,174.04,1.05579898]
[1729870865573,2.8728,174.11,174.07,2.8733]
[1729870865775,21.98733116,174.14,174.0,21.98733116]
[1729870865968,21.98733116,174.14,173.95,4.1670193]
[1729870866270,2.8737,174.05,173.97,2.875]
[1729870866577,21.98733116,174.12,173.95,2.5458]
[1729870866876,21.98733116,174.12,173.97,21.98733116]
[1729870867168,2.8733,174.08,173.99,2.8745]
[1729870867369,21.98733116,174.12,173.97,21.98733116]
[1729870867573,21.98733116,174.12,173.95,2.5458]
[1729870867966,2.8737,174.06,173.98,2.8748]
[1729870868277,21.98733116,174.09,173.95,2.5458]
[1729870869767,2.8741,174.03,173.95,2.5458]
[1729870870370,21.98733116,174.06,173.79,22.896]
[1729870870677,2.8743,174.02,173.89,21.98733116]
[1729870870865,21.98733116,174.06,173.96,2.8751]
[1729870871064,21.98733116,174.09,173.92,21.98733116]
[1729870871065,2.8737,174.05,173.92,21.98733116]
[1729870871277,2.8737,174.05,173.93,1.05662168]
[1729870871580,2.8737,174.05,173.98,2.8747]
[1729870871776,2.8737,174.05,173.92,21.98733116]
[1729870872075,21.98733116,174.09,174.04,2.8738]
[1729870872278,21.98733116,174.09,173.97,21.98733116]
[1729870872471,21.98733116,174.09,173.98,3.51187931]
[1729870872673,2.8733,174.08,174.02,2.8741]
[1729870872868,21.98733116,174.05,173.85,5.7538]
[1729870873069,2.8745,174.01,173.94,2.8754]
[1729870873275,21.98733116,174.05,173.94,2.8754]
[1729870873475,21.98733116,174.05,173.89,21.98733116]
[1729870873671,2.8747,174.0,173.9,1.05672513]
[1729870873878,21.98733116,174.05,173.9,1.05672513]
[1729870874677,2.8742,174.02,173.96,2.8751]
[1729870874877,21.98733116,174.05,173.92,21.98733116]
[1729870875080,21.98733116,174.05,173.93,1.05669962]
[1729870875379,2.8739,174.04,173.93,1.05669962]
[1729870875684,21.98733116,174.05,173.92,21.98733116]
[1729870875877,2.8741,174.03,173.97,2.875]
[1729870876471,21.98733116,174.05,173.89,21.98733116]
[1729870876681,21.98733116,174.0,173.9,1.0567267]
[1729870876977,21.98733116,174.0,173.88,2.5655]
[1729870877179,2.875,173.97,173.92,2.8758]
[1729870877573,21.98733116,174.0,173.88,2.5655]
[1729870877774,2.875,173.98,173.92,2.8758]
[1729870877977,21.98733116,174.0,173.88,2.5655]
[1729870878184,21.98733116,174.0,173.89,1.05690369]
[1729870878376,2.8749,173.98,173.92,2.8758]
[1729870878885,21.98733116,174.0,173.88,2.5655]
[1729870879181,2.8752,173.97,173.89,1.05691733]
[1729870879376,2.8752,173.97,173.88,2.5655]
[1729870879576,2.8752,173.97,173.92,2.8758]
[1729870879784,2.8752,173.97,173.84,5.726]
[1729870879980,2.8752,173.97,173.86,5.726]
[1729870880189,2.8752,173.97,173.92,2.8758]
[1729870881282,24.86253116,173.97,173.92,2.8758]
[1729870881683,2.8752,173.96,173.92,2.8758]
[1729870882483,24.86243116,173.97,173.92,2.8758]
[1729870882684,2.8751,173.97,173.92,2.8758]
[1729870883176,2.8751,173.97,173.85,2.3587]
[1729870883177,2.8747,173.99,173.94,2.8754]
[1729870883379,2.8747,173.99,173.87,1.1764]
[1729870883573,2.8747,173.99,173.88,1.05695758]
[1729870884288,2.8747,173.99,173.94,2.8754]
[1729870884590,21.98733116,174.0,173.87,1.1764]
[1729870884784,21.98733116,174.0,173.96,2.8751]
[1729870885477,24.86193116,174.0,173.87,1.1764]
[1729870885681,21.98733116,174.0,173.88,1.05694886]
[1729870886286,24.86203116,174.0,173.95,2.8752]
[1729870886584,21.98733116,174.0,173.87,1.1764]
[1729870886777,24.86183116,174.0,173.95,2.8752]
[1729870886980,24.86183116,174.0,173.87,1.1764]
[1729870887183,21.98733116,174.0,173.88,1.05694316]
[1729870887382,2.8749,173.98,173.94,2.8755]
[1729870887979,2.8751,173.97,173.93,2.8756]
[1729870888379,21.98733116,174.0,173.87,1.1764]
[1729870888584,2.875,173.98,173.93,2.8755]
[1729870888790,2.875,173.98,173.87,1.1764]
[1729870888980,2.875,173.98,173.94,2.8755]
[1729870889685,24.86193116,174.0,173.96,2.875]
[1729870889882,2.8746,174.0,173.96,2.875]
[1729870890277,2.8747,173.99,173.96,2.875]
[1729870891783,2.8746,174.0,173.96,2.875]
[1729870892183,21.98733116,174.03,173.96,2.875]
[1729870892990,2.8744,174.01,173.96,2.875]
[1729870893191,21.98733116,174.03,173.96,2.875]
[1729870893590,2.8747,174.0,173.96,2.875]
[1729870893790,21.98733116,174.03,173.96,2.875]
[1729870895299,2.8746,174.0,173.96,2.875]
[1729870895890,2.8743,174.02,173.98,2.8748]
[1729870896091,21.98733116,174.03,173.88,21.98733116]
[1729870896287,21.98733116,174.03,173.91,21.98733116]
[1729870896592,2.8742,174.02,173.98,2.8747]
[1729870896793,2.8742,174.02,173.91,21.98733116]
[1729870896989,2.8742,174.02,173.99,2.8746]
[1729870897192,24.86143116,174.03,173.99,2.8746]
[1729870897394,21.98733116,174.03,173.99,2.8746]
[1729870897593,21.98733116,174.03,173.95,2.8753]
[1729870898095,2.8744,174.01,173.87,1.1764]
[1729870898289,21.98733116,174.03,173.97,2.875]
[1729870898696,2.8745,174.01,173.97,2.875]
[1729870898892,21.98733116,174.03,173.92,2.8758]
[1729870899090,2.8743,174.02,173.93,2.5559]
[1729870899402,21.98733116,174.03,173.93,2.5559]
[1729870899786,2.8748,173.99,173.88,21.98733116]
[1729870899988,21.98733116,174.03,173.83,5.726]
[1729870899989,21.98733116,173.91,173.83,5.726]
[1729870900197,21.98733116,173.91,173.67,2.3510116]
[1729870900198,43.97466232,173.84,173.58,1.2715]
[1729870900396,93.69892473,173.9,173.67,21.98733116]
[1729870900397,21.98733116,173.82,173.67,21.98733116]
[1729870900589,21.98733116,173.82,173.73,2.8788]
[1729870900792,2.8777,173.81,173.73,2.8788]
[1729870900994,21.98733116,173.79,173.68,3.7334]
[1729870901200,21.98733116,173.76,173.61,21.98733116]
[1729870901398,21.98733116,173.76,173.65,1.1735]
[1729870901797,21.98733116,173.76,173.69,2.8796]
[1729870902310,21.98733116,173.79,173.65,1.1735]
[1729870902713,21.98733116,173.76,173.65,1.1735]
[1729870903012,21.98733116,173.76,173.69,2.8795]
[1729870903213,21.98733116,173.76,173.65,1.1735]
[1729870903509,21.98733116,173.78,173.68,2.8797]
[1729870903704,21.98733116,173.78,173.65,1.1735]
[1729870904007,111.89892473,173.9,173.65,1.1735]
[1729870904008,1.0,173.9,173.7,21.98733116]
[1729870904205,21.98733116,173.83,173.71,1.1911]
[1729870905107,21.98733116,173.84,173.71,1.1911]
[1729870905413,21.98733116,173.82,173.71,1.1911]
[1729870905710,21.98733116,173.79,173.71,1.1911]
[1729870906412,21.98733116,173.79,173.69,2.8795]
[1729870906814,21.98733116,173.84,173.57,2.93839461]
[1729870906815,21.98733116,173.72,173.57,2.93839461]
[1729870907005,21.98733116,173.72,172.36,156.43288698]
[1729870907006,21.98733116,173.74,173.58,21.98733116]
[1729870907204,21.98733116,173.74,173.59,1.3036]
[1729870907603,1.0,173.78,173.61,21.98733116]
[1729870907809,22.98733116,173.78,173.64,21.98733116]
[1729870908109,2.8788,173.74,173.67,2.88]
[1729870908409,22.98733116,173.78,173.65,2.5813]
[1729870908713,2.879,173.74,173.67,2.88]
[1729870909302,2.8791,173.73,173.65,2.5813]
[1729870909615,22.98733116,173.78,173.65,2.5813]
[1729870909809,2.879,173.73,173.66,2.8801]
[1729870910413,2.879,173.73,173.65,2.5813]
[1729870911415,2.88,173.68,173.45,17.17]
[1729870911609,21.98733116,173.7,173.58,3.6865]
[1729870913112,21.98733116,173.7,173.58,1.2675]
[1729870914012,2.8801,173.67,173.6,2.881]
[1729870914413,21.98733116,173.7,173.58,1.2675]
[1729870914612,2.8798,173.68,173.58,1.2675]
[1729870914814,21.98733116,173.7,173.58,1.2675]
[1729870915206,21.98733116,173.67,173.46,17.17]
[1729870915411,21.98733116,173.67,173.52,1.1831]
[1729870915606,21.98733116,173.67,173.57,2.8815]
[1729870915607,2.8805,173.64,173.57,2.8815]
[1729870916011,2.8805,173.64,173.58,2.8815]
[1729870917015,21.98733116,173.67,173.52,1.1831]
[1729870917209,21.98733116,173.67,173.53,1.05900737]
[1729870917210,2.8809,173.62,173.53,1.05900737]
[1729870918016,2.8809,173.62,173.56,2.8817]
[1729870918216,21.98733116,173.67,173.52,1.1831]
[1729870918412,21.98733116,173.67,173.53,1.05906132]
[1729870918714,1.0,173.78,173.6,21.98733116]
[1729870918715,21.98733116,173.73,173.6,21.98733116]
[1729870918921,2.8796,173.7,173.61,3.7356]
[1729870919216,21.98733116,173.73,173.64,2.8804]
[1729870919421,2.8796,173.7,173.61,3.7356]
[1729870919620,21.98733116,173.76,173.65,2.8802]
[1729870919816,21.98733116,173.76,173.62,26.58733116]
[1729870920022,2.8795,173.7,173.62,4.6]
[1729870920324,21.98733116,173.76,173.62,4.6]
[1729870920918,2.8794,173.71,173.65,2.8802]
[1729870921219,1.0,173.78,173.62,4.6]
[1729870921220,1.0,173.78,173.64,21.98733116]
[1729870921418,21.98733116,173.82,173.72,2.8791]
[1729870922120,2.8784,173.77,173.72,2.8791]
[1729870922715,2.8785,173.76,173.71,2.8792]
[1729870922915,21.98733116,173.82,173.71,2.8792]
[1729870923220,2.8792,173.73,173.66,2.8801]
[1729870923426,2.8792,173.73,173.62,4.6]
[1729870923629,21.98733116,173.77,173.62,26.58733116]
[1729870923830,2.8789,173.74,173.69,2.8795]
[1729870924023,2.8789,173.74,173.62,26.58733116]
[1729870924328,2.8789,173.74,173.65,2.8802]
[1729870924531,2.8789,173.74,173.62,26.58733116]
[1729870924923,2.8786,173.76,173.7,2.8793]
[1729870925130,2.8786,173.76,173.62,4.6]
[1729870925131,2.8786,173.76,173.67,21.98733116]
[1729870925329,21.98733116,173.84,173.67,21.98733116]
[1729870926224,2.8781,173.79,173.74,2.8787]
[1729870926626,21.98733116,173.84,173.7,21.98733116]
[1729870926827,21.98733116,173.84,173.71,3.732]
[1729870927023,21.98733116,173.87,173.73,21.98733116]
[1729870927334,21.98733116,173.9,173.76,21.98733116]
[1729870927523,21.98733116,173.9,173.79,2.878]
[1729870927719,21.98733116,173.9,173.76,21.98733116]
[1729870928029,115.66127743,173.93,173.71,3.732]
[1729870928030,2.8764,173.89,173.83,2.8773]
[1729870928219,115.66127743,173.93,173.8,3.6398]
[1729870928419,337.0,174.01,173.8,3.6398]
[1729870928420,21.98733116,173.95,173.81,21.98733116]
[1729870928721,21.98733116,173.89,173.8,3.6398]
[1729870929327,21.98733116,173.93,173.8,3.6398]
[1729870929632,21.98733116,173.95,173.81,21.98733116]
[1729870929832,2.876,173.92,173.85,2.877]
[1729870930031,21.98733116,173.95,173.81,21.98733116]
[1729870930327,21.98733116,173.87,173.8,3.6398]
[1729870930534,21.98733116,173.85,173.74,1.2929]
[1729870930928,21.98733116,173.85,173.76,2.8785]
[1729870931133,21.98733116,173.87,173.75,21.98733116]
[1729870931629,2.8775,173.83,173.78,2.8781]
[1729870931821,21.98733116,173.82,173.7,1.2504]
[1729870932023,21.98733116,173.79,173.7,1.2504]
[1729870933426,2.8788,173.75,173.7,4.1298]
[1729870933631,21.98733116,173.79,173.7,1.2504]
[1729870934335,35.96396663,173.79,173.71,2.8793]
[1729870934935,2.8784,173.77,173.71,2.8793]
[1729870935138,35.96396663,173.79,173.71,2.8793]
[1729870935327,35.96396663,173.79,173.7,1.2504]
[1729870936330,35.96396663,173.85,173.71,35.96396663]
[1729870936630,2.8775,173.83,173.74,35.96396663]
[1729870936835,35.96396663,173.88,173.75,2.453]
[1729870937133,35.96396663,173.91,173.8,2.8777]
[1729870937323,35.96396663,173.91,173.77,35.96396663]
[1729870937635,35.96396663,173.91,173.79,2.878]
[1729870937939,2.8773,173.84,173.79,2.878]
[1729870938433,337.0,173.95,173.77,35.96396663]
[1729870938434,2.8768,173.87,173.77,35.96396663]
[1729870938640,2.8768,173.87,173.79,35.96396663]
[1729870938936,2.8768,173.87,173.82,2.8775]
[1729870939324,2.8766,173.88,173.8,1.2946]
[1729870939531,35.96396663,173.92,173.8,1.2946]
[1729870939733,93.6598929,173.97,173.8,4.1723]
[1729870939734,35.96396663,173.89,173.8,4.1723]
[1729870939925,2.8772,173.84,173.8,1.2946]
[1729870940335,35.96396663,173.86,173.75,2.453]
[1729870941130,35.96396663,173.86,173.78,2.878]
[1729870941636,35.96396663,173.89,173.76,35.96396663]
[1729870942432,2.8771,173.85,173.82,2.8775]
[1729870942937,337.0,173.96,173.83,2.8772]
[1729870942938,2.8767,173.87,173.83,2.8772]
[1729870943137,2.8767,173.87,173.79,35.96396663]
[1729870943138,35.96396663,173.91,173.8,1.2813]
[1729870943334,35.96396663,173.94,173.82,35.96396663]
[1729870943549,2.876,173.92,173.83,1.25]
[1729870943836,129.62385953,173.97,173.84,35.96396663]
[1729870944041,35.96396663,173.99,173.9,2.8761]
[1729870944227,35.96396663,173.99,173.84,37.16776663]
[1729870944432,35.96396663,173.99,173.91,2.8758]
[1729870944433,2.8755,173.95,173.91,2.8758]
[1729870944632,2.8755,173.95,173.87,35.96396663]
[1729870945143,35.96396663,173.97,173.84,37.16776663]
[1729870945342,35.96396663,173.97,173.84,1.2038]
[1729870945544,2.8756,173.94,173.9,2.8761]
[1729870945740,2.8756,173.94,173.84,1.2038]
[1729870945933,35.96396663,173.99,173.86,35.96396663]
[1729870946137,35.96396663,174.03,173.89,35.96396663]
[1729870946641,35.96396663,174.03,173.94,2.8755]
[1729870947139,337.0,174.09,173.94,2.8755]
[1729870947445,35.96396663,174.05,173.95,2.8752]
[1729870947943,2.8742,174.02,173.95,2.8752]
[1729870948149,35.96396663,174.05,173.96,2.875]
[1729870948533,2.8747,174.0,173.96,2.875]
[1729870949337,2.93433617,174.14,173.84,1.2038]
[1729870949338,35.96396663,174.06,173.94,35.96396663]
[1729870949537,35.96396663,174.03,173.89,35.96396663]
[1729870949945,35.96396663,173.98,173.78,2.84723339]
[1729870950148,35.96396663,173.98,173.83,2.5244]
[1729870950340,2.8761,173.91,173.87,2.8766]
[1729870950739,35.96396663,173.95,173.83,2.5244]
[1729870950942,35.96396663,173.95,173.85,2.8769]
[1729870950943,2.8765,173.89,173.85,2.8769]
[1729870951338,2.8765,173.89,173.83,1.2244]
[1729870951339,2.8768,173.87,173.83,2.8773]
[1729870951547,35.96396663,173.92,173.79,35.96396663]
[1729870952042,35.96396663,173.92,173.77,1.2244]
[1729870952451,35.96396663,173.89,173.77,1.2244]
[1729870953048,2.8772,173.84,173.79,2.8779]
[1729870953750,2.8772,173.84,173.8,2.8778]
[1729870954342,35.96396663,173.92,173.77,37.18836663]
[1729870954540,35.96396663,173.98,173.77,37.18836663]
[1729870954541,35.96396663,173.89,173.77,37.18836663]
[1729870954746,2.8773,173.83,173.78,2.8781]
[1729870955146,2.8773,173.83,173.77,1.2244]
[1729870955846,2.8772,173.84,173.79,2.878]
[1729870956854,35.96396663,173.89,173.79,2.878]
[1729870957355,2.8773,173.84,173.8,2.8778]
[1729870958156,2.8769,173.86,173.8,2.8778]
[1729870958453,35.96396663,173.89,173.8,2.8778]
[1729870959152,2.8773,173.84,173.8,2.8778]
[1729870959456,2.8773,173.84,173.81,2.8777]
[1729870959947,2.8775,173.83,173.79,2.878]
[1729870960349,2.8775,173.83,173.77,1.2244]
[1729870960549,2.8767,173.88,173.83,2.8773]
[1729870960851,22.10851474,173.91,173.83,2.8773]
[1729870961044,2.8774,173.83,173.79,2.8778]
[1729870961238,2.8774,173.83,173.76,1.256]
[1729870961443,2.81474036,173.94,173.77,22.10851474]
[1729870961444,22.10851474,173.91,173.77,22.10851474]
[1729870961645,2.8771,173.85,173.81,2.8776]
[1729870962055,2.8769,173.86,173.82,2.8774]
[1729870962257,2.8769,173.86,173.77,22.10851474]
[1729870962552,22.10851474,173.91,173.77,22.10851474]
[1729870962750,22.10851474,173.91,173.82,2.8775]
[1729870964354,2.877,173.86,173.82,2.8775]
[1729870964747,22.10851474,173.91,173.82,2.8775]
[1729870964948,22.10851474,173.91,173.77,22.10851474]
[1729870965149,22.10851474,173.88,173.76,1.256]
[1729870965653,22.10851474,173.88,173.79,2.8779]
[1729870966248,22.10851474,173.88,173.76,1.256]
[1729870966551,22.10851474,173.91,173.8,22.10851474]
[1729870967342,2.877,173.86,173.82,2.8774]
[1729870967551,2.877,173.86,173.8,22.10851474]
[1729870967855,2.877,173.86,173.82,2.8774]
[1729870968062,22.10851474,173.86,173.76,1.256]
[1729870968362,22.10851474,173.82,173.73,4.1323]
[1729870968548,2.8787,173.75,173.7,1.1854]